Cogmind - Beta 17.1 @@@ ROGUE MODE // 2026.09.12 @ 01:09:59 Player: 4R-ZE3 Result: Destroyed by D-53 Grenadier with Mini Grenade Launcher Performance ------------- Evolutions (0) 0 Regions Visited (2) 400 Robots Destroyed (18) 90 Value Destroyed (331) 331 Prototype IDs (0) 0 Alien Tech Used (0) 0 Bonus (0) 0 TOTAL SCORE: 821 Bonus ------- None Cogmind --------- Core Integrity 0/250 Matter 280/300 Energy 220/250 System Corruption 0% Temperature Cool (10) Movement Rolling (145) Ox3 Location -10/Mines Parts ------- > --- POWER (1) -------- Ion Engine > --- PROPULSION (2) --- Compact Wheel > --- UTILITY (2) ------ High-capacity Storage Unit Light Armor Plating > --- WEAPON (2) ------- EM Pulse Gun > --- INVENTORY (20) --- Ion Engine Light Ion Engine Light Treads Light Treads Huge Storage Unit Light Armor Plating Light Assault Rifle Light Assault Rifle Light Assault Rifle Light Assault Rifle Mining Laser Peak State ------------ > --- POWER ------------ Ion Engine > --- PROPULSION ------- Wheel Compact Wheel > --- UTILITY ---------- Heat Sink High-capacity Storage Unit > --- WEAPON ----------- Small Laser Light Assault Rifle > --- INVENTORY -------- Ion Engine Light Ion Engine Light Treads Light Treads Huge Storage Unit Light Armor Plating Light Armor Plating EM Pulse Gun Medium Laser Light Assault Rifle Light Assault Rifle Light Assault Rifle [Rating: 8] Favorites ----------- Power Ion Engine Engine Ion Engine Propulsion Light Treads Treads Light Treads Wheel Compact Wheel Utility High-capacity Storage Unit Device Heat Sink Storage High-capacity Storage Unit Weapon Medium Laser Energy Gun Medium Laser Ballistic Gun Light Assault Rifle Build | -11 -10 -10 ------- Run | Yrd Mat Min Slots Evolved . | . . . Power . | . . . Propulsion . | . . . Utility . | . . . Weapon . | . . . Parts Attached 16 | 5 10 1 Power 2 | . 2 . Engine 2 | . 2 . Core . | . . . Reactor . | . . . Propulsion 5 | 2 3 . Treads 2 | 2 . . Leg . | . . . Wheel 3 | . 3 . Hover . | . . . Flight . | . . . Utility 4 | 1 2 1 Device 1 | . 1 . Storage 2 | 1 1 . Processor . | . . . Hackware . | . . . Protection 1 | . . 1 Artifact . | . . . Weapon 5 | 2 3 . Energy Gun 4 | 2 2 . Energy Cannon . | . . . Ballistic Gun 1 | . 1 . Ballistic Cannon . | . . . Launcher . | . . . Special Weapon . | . . . Impact Weapon . | . . . Slashing Weapon . | . . . Piercing Weapon . | . . . Special Melee Weapon . | . . . Unidentified Prototypes . | . . . Parts Lost 6 | . 2 4 Power . | . . . Propulsion 2 | . 1 1 Utility 1 | . . 1 Weapon 3 | . 1 2 Highest Loss Streak 4 | . 1 4 To Critical Strikes . | . . . Average Backups 8 | 2 8 13 Power 1 | 1 1 2 Propulsion 1 | 1 2 2 Utility 2 | . 2 3 Weapon 2 | . 2 6 Tool/Special . | . . . Unused Backups 6 | . . 6 Power 1 | . . 1 Propulsion . | . . . Utility 2 | . . 2 Weapon 3 | . . 3 Tool/Special . | . . . Average Slot Usage (%) 85 | . 85 90 Engine 13 | . 13 14 Treads 19 | . 20 . Wheel 7 | . 6 25 Device 5 | . 4 11 Storage 14 | . 14 14 Energy Gun 19 | . 19 23 Ballistic Gun 6 | . 6 . Peak Build Rating 8 | 5 8 8 Average Rating 6 | 3 6 7 On Entrance 4 | . 5 8 Avg Prop Armor Cover (%) . | . . . Naked Turns . | . . . Heaviest Build 49 | 8 49 49 Greatest Support 40 | 40 40 26 Greatest Overweight (x) 3 | . 3 1 Average Overweight (x) 1 | . 1 1 Largest Inventory Capacity 20 | 8 20 20 Average Capacity 18 | 6 19 20 Most Carried 13 | 5 13 13 Average Carried 8 | 2 8 12 Final Capacity 20 | 8 20 20 Final Carried 13 | 5 13 11 Class Distribution -------------------- 100% | Mutant Dominant Class ---------------- Mutant | -10/Materials Mutant | -10/Mines Resources | -11 -10 -10 ----------- Run | Yrd Mat Min Matter Collected 405 | 221 174 10 Remotely . | . . . Salvage Created 485 | . 485 . Parts 35 | . 35 . Haulers Intercepted 1 | . 1 . Recyclers Shooed 1 | . . 1 Parts Field Recycled . | . . . Retrieved Matter . | . . . Parts Self-Destructed . | . . . Prevented . | . . . Parts Restored . | . . . Kills | -11 -10 -10 ------- Run | Yrd Mat Min Combat Hostiles Destroyed 16 | . 16 . Guns 16 | . 16 . Classes Destroyed 4 | . 4 . Worker 1 | . 1 . Hauler 1 | . 1 . Swarmer 9 | . 9 . Grunt 7 | . 7 . Best Kill Streak 4 | . 4 . Combat Bots Only 3 | . 3 . Max Kills in Single Turn 2 | . 2 . Gunslinging 1 | . 1 . Exploded . | . . . Melee . | . . . Uniques/NPCs Destroyed . | . . . Combat | -11 -10 -10 -------- Run | Yrd Mat Min Hostile Shots Fired 95 | . 85 10 Missed 22 | . 21 1 Hits 73 | . 64 9 Projectile 73 | . 64 9 AOE 10 | . . 10 Damage Taken 940 | . 604 336 Core 253 | . 56 197 Absorbed by Shields . | . . . Core Remaining (%) 100 | 100 . . Volleys Fired 48 | . 45 3 Largest 2 | . 2 2 Hottest 90 | . 90 90 Shots Fired 85 | . 79 6 Gun 85 | . 79 6 Cannon . | . . . Launcher . | . . . Special . | . . . Kinetic 18 | . 18 . Thermal 51 | . 45 6 Explosive . | . . . Electromagnetic 16 | . 16 . Robot Hit Streak 8 | . 8 4 Robot Miss Streak 3 | . 3 1 Penetration Max . | . . . Secondary Targets 2 | . 2 . Max Gunslinging Chain 1 | . 1 . Shots Hit Robots 53 | . 49 4 Core Hits 27 | . 26 1 Critical Kills . | . . . Critical Parts Destroyed . | . . . Critical Strikes 4 | . 4 . Burn 4 | . 4 . Melee Attacks . | . . . Impact . | . . . Slashing . | . . . Piercing . | . . . Sneak Attacks . | . . . Combat Hostiles . | . . . Follow-up Attacks . | . . . Damage Inflicted 659 | . 614 45 Guns 654 | . 609 45 Cannons . | . . . Explosions . | . . . Melee . | . . . Ramming 5 | . 5 . Kinetic 101 | . 101 . Thermal 374 | . 329 45 Explosive . | . . . Electromagnetic 179 | . 179 . Impact . | . . . Slashing . | . . . Piercing . | . . . Highest Corruption . | . . . Average Corruption . | . . . Corruption Purged . | . . . Corruption Blocked . | . . . Overload Shots . | . . . Overflow Damage . | . . . Projectiles . | . . . Explosions . | . . . Melee . | . . . Knockbacks . | . . . Impact . | . . . Kinetic . | . . . Secondary . | . . . Self-Inflicted Damage . | . . . Shots . | . . . Rammed 2 | . 2 . Targets Rammed 2 | . 2 . Kicked . | . . . Crushed . | . . . Highest Temperature 342 | . 342 30 Average Temperature 124 | . 127 17 Received Heat Transfer 210 | . 210 . Siege Activations . | . . . Martial Activations . | . . . Shielding Activations . | . . . Robots Disrupted . | . . . Combat Hostiles . | . . . Robots Corrupted 1 | . 1 . Combat Hostiles . | . . . Parts Fried 1 | . 1 . Impact Corruptions . | . . . Robots Melted . | . . . Combat Hostiles . | . . . Parts Melted 5 | . 5 . Heat Transferred 1287 | . 1163 124 Parts Sabotaged . | . . . Parts Stolen . | . . . Parts Stripped . | . . . Power Chain Reactions . | . . . Alert | -11 -10 -10 ------- Run | Yrd Mat Min Maximum Alert Level 1 | . 1 . Low Security (%) 97 | 100 96 100 Level 1 2 | . 3 . Level 2 . | . . . Level 3 . | . . . Level 4 . | . . . Level 5 . | . . . High Security . | . . . Max Security . | . . . Peak Influence 208 | . 208 71 Initial 71 | . . 71 Average 55 | . 58 61 Influence Increases 528 | . 528 . Destroy 0b10 Robot/C 320 | . 320 . Destroy 0b10 Robot/NC 10 | . 10 . Destroy Leader 62 | . 62 . Successful Hack 16 | . 16 . Select Force Hacks 60 | . 60 . Lose Combat Pursuer 60 | . 60 . Influence Decreases 517 | . 344 173 Entered New Map 113 | . . 113 Time Decay 344 | . 324 20 Lost Part 60 | . 20 40 Squads Dispatched 4 | . 4 . Investigation 4 | . 4 . Extermination . | . . . Reinforcement . | . . . Assault . | . . . Garrison . | . . . Intercept . | . . . Searches Triggered . | . . . Construction Impeded . | . . . Haulers Reinforced . | . . . Active Scanning Responses . | . . . Cargo Convoy Interrupts . | . . . Stealth | -11 -10 -10 --------- Run | Yrd Mat Min Distress Signals 2 | . 2 . Communications Jammed . | . . . Distress Signals . | . . . Times Spotted 48 | . 31 17 Peak Tracking Total 17 | . 6 17 Tactical Retreats 4 | . 3 1 Traps | -11 -10 -10 ------- Run | Yrd Mat Min Traps Triggered 4 | . 4 . Indirectly . | . . . Trap Hack Attempts . | . . . Triggered . | . . . Disarmed . | . . . Reprogrammed . | . . . Reused . | . . . Traps Extracted . | . . . Installed . | . . . Triggered . | . . . Machines | -11 -10 -10 ---------- Run | Yrd Mat Min Machines Disabled . | . . . Max in Single Turn . | . . . Machines Repaired . | . . . Machines Dismantled . | . . . Machines Sabotaged . | . . . Overloaded Fab Kills . | . . . Hacking | -11 -10 -10 --------- Run | Yrd Mat Min Machines Accessed 6 | . 6 . Terminals 4 | . 4 . Fabricators . | . . . Repair Stations . | . . . Recycling Units 2 | . 2 . Scanalyzers . | . . . Garrison Access . | . . . Total Hacks 10 | . 10 . Successful 7 | . 7 . Failed 3 | . 3 . Catastrophic . | . . . Database Lockouts . | . . . Manual 10 | . 10 . Terminals 8 | . 8 . Fabricators . | . . . Repair Stations . | . . . Recycling Units 2 | . 2 . Scanalyzers . | . . . Garrison Access . | . . . Terminal Hacks 4 | . 4 . Part Schematic 1 | . 1 . Robot Analysis 2 | . 2 . Recycling Unit Index 1 | . 1 . Fabricator Hacks . | . . . Repair Station Hacks . | . . . Recycling Unit Hacks . | . . . Scanalyzer . | . . . Garrison Access Hacks . | . . . Unauthorized Hacks 3 | . 3 . Terminals 1 | . 1 . Botnet 1 | . 1 . Fabricators . | . . . Repair Stations . | . . . Recycling Units 2 | . 2 . Tunnel 2 | . 2 . Scanalyzers . | . . . Garrison Access . | . . . Data Cores Recovered . | . . . Used . | . . . Hacking Detections 4 | . 4 . Full Trace Events . | . . . Feedback Events . | . . . Feedback Blocked . | . . . Robot Schematics Acquired . | . . . Robots Built . | . . . Authchips . | . . . Time . | . . . Total Robot Build Rating . | . . . Part Schematics Acquired 1 | . 1 . Parts Built . | . . . Authchips . | . . . Time . | . . . Total Part Build Rating . | . . . Part Studies Acquired . | . . . Parts Repaired . | . . . Time . | . . . Parts Recycled . | . . . Recycled Matter . | . . . Retrieved Matter . | . . . Retrieved Components . | . . . Parts Scanalyzed . | . . . Part Schematics Acquired . | . . . Parts Damaged . | . . . Bothacking | -11 -10 -10 ------------ Run | Yrd Mat Min Used RIF Installer . | . . . Robots Hacked . | . . . Non-combat . | . . . Combat . | . . . Robot Hacks Applied . | . . . Relay Couplers Released . | . . . Fabnet Peak Effective % . | . . . Robots Rewired . | . . . Allies Hacked . | . . . Hacks Repelled . | . . . Allies | -11 -10 -10 -------- Run | Yrd Mat Min Total Allies . | . . . Largest Group . | . . . Highest-Rated Group . | . . . Highest-Rated Ally . | . . . Total Orders . | . . . Ally Attacks . | . . . Total Damage . | . . . Kills . | . . . Allies Corrupted . | . . . Allies Melted . | . . . Intel | -11 -10 -10 ------- Run | Yrd Mat Min Active Infowar (turns) . | . . . Robot Analysis Total 2 | . 2 . Derelict Logs Recovered . | . . . Drone Launches . | . . . Drone Recoveries . | . . . Exploration | -11 -10 -10 ------------- Run | Yrd Mat Min Turns Passed 1180 | 73 1064 43 Spaces Moved 525 | 40 455 30 Core 3 | 3 . . Treads 322 | 37 285 . Legs . | . . . Wheels 200 | . 170 30 Hover . | . . . Flight . | . . . Fastest Speed 50 | 50 105 105 Average Speed 183 | 151 191 105 Slowest Speed 320 | 160 320 105 Overloaded Moves . | . . . Propulsion Burnouts . | . . . Robots Hopped . | . . . Potential Cave-ins . | . . . Cave-ins Triggered . | . . . Exploration Rate (%) 29 | 3 70 14 Regions Visited 2 Branch Regions 1 Pre-discovered Areas 2 | . 2 . Known Exits Taken . | . . . Unknown Exits Taken 2 | 1 1 . Scrap Searched . | . . . Spaces Dug . | . . . Terrain Destroyed . | . . . Melee . | . . . Projectile . | . . . AOE . | . . . Terrain Rammed . | . . . Walls Destroyed . | . . . Machines Disabled . | . . . Actions | -11 -10 -10 --------- Run | Yrd Mat Min Total 651 | 50 565 36 Wait 34 | . 33 1 Move 523 | 39 454 30 Hop . | . . . Pick Up 21 | 6 15 . Fast Attach 8 | 4 4 . Attach 10 | 1 7 2 Detach . | . . . Swap 4 | . 4 . Drop 1 | . 1 . Fire 48 | . 45 3 Melee . | . . . Ram . | . . . Kick . | . . . Crush 2 | . 2 . Escape Stasis . | . . . Rewire . | . . . Trap . | . . . Miscellaneous . | . . . Route ------- -11/Scrapyard -10/Materials (discovered 3 exits: [*Mat x2] / [*Min]) -10/Mines History --------- Turn | Location | Event 11 | -11/Scrapyard | Discovered new exit (range 14) 74 | -11/Scrapyard | Entered Materials 311 | -10/Materials | Build established: Mutant 421 | -10/Materials | Discovered new exit (range 16) 694 | -10/Materials | Discovered new exit (range 12) 912 | -10/Materials | Discovered new exit (range 16) 1138 | -10/Materials | Entered Mines 1139 | -10/Mines | Assembled infested the area 1144 | -10/Mines | Assisted by a Guerilla fighting off Assembled 1166 | -10/Mines | Core integrity fell below 50% 1180 | -10/Mines | Core integrity fell below 20% 1181 | -10/Mines | Destroyed by D-53 Grenadier with Mini Grenade Launcher Last Messages --------------- 01163_ 4Z-1K5(h) destroyed. 01163_ as-91249 destroyed. 01165_ K-01 Serf collects debris. 01166_ as-41283 destroyed. 01167_ The unstable cave ceiling collapses. 01167_ Acquired 10 matter. 01168_ as-21050 destroyed. 01168_ as-12889 destroyed. 01168_ as-62817 destroyed. 01168_ as-45680 destroyed. 01169_ as-34027 destroyed. 01177_ Wheel destroyed. 01177_ Heat Sink destroyed. 01177_ Med. Laser destroyed. 01178_ The unstable cave ceiling collapses. 01179_ K-01 Serf collects debris. 01179_ Sml. Laser destroyed. 01180_ A derelict emerges from the shadows: "Quick, help me dispose of these Unaware!" 01181_ The unstable cave ceiling collapses. Map ----- +----------------------------------------------------+ | ?????????????????????????????????????????????????? | | ?????????????????????????????????????????????????? | | ?????????????????????????????????????????????????? | | ?????????????????????????????????????????????????? | | ??????????????????????????????????#??????????????? | | ?????????????????????????????????? #?????????????? | | ?????????????????????????????????? ?????????????? | | ?????????????????????????????????? ?????????????? | | ????????????????????????????????? ???????????? | | ????????????????????????????????? % ?#?????????? | | ???????????????????????????????? ?????????? # | | ?????????????????????????####### " ????????? # | | ?????????????????? ????### #???????? # | | ?????????????????? ???? # #???????# # | | ?????????????????? ????? k ##???### # | | ????????????????#?? ????? = #??? # | | ????????????????? ? ?????# % # #??? #? | | ?????????????????# ? ????# # = ##### #??? | | ?????????????????# ? ????##t ## #???? | | ??????????????????# g ???# #???? | | ???????????????????# #### ##???? | | ????????????????????# # # = %d # #????? | | ?????????????????????# d ## ##????? | | ????????????????????## # ## ####?????? | | ??????????????# ## ######????????? | | ???????????????# @ # ###?????????????? | | ????????????????# ####???????????????? | | ????????????????## $ #?????????????????? | | ?????????????????# #????????????????? | | ??????????????? # #???????????????? | | ??????????????#### ?## ##### #??????????????? | | ????????????????# ???###????? #?????????????? | | ????????????????????????????? r #?????????????? | | ?????????????????????????????# #?????????????? | | ??????????????????????????????## #?????????????? | | ????????????????????????????????# ?????????????? | | ????????????????????????????????? ????????????? | | ?????????????????????????????????? ??????????????? | | ?????????????????????????????????????????????????? | | ?????????????????????????????????????????????????? | | ?????????????????????????????????????????????????? | | ?????????????????????????????????????????????????? | | ?????????????????????????????????????????????????? | | ?????????????????????????????????????????????????? | | ?????????????????????????????????????????????????? | | ?????????????????????????????????????????????????? | | ?????????????????????????????????????????????????? | | ?????????????????????????????????????????????????? | | ?????????????????????????????????????????????????? | | ?????????????????????????????????????????????????? | +----------------------------------------------------+ Best States ------------- Heat Dissipation 35 Energy Generation 10 Energy Capacity 250 Matter Stores 300 Matter Capacity 300 Sight Range 16 Terrain Scan Density 10 Evasion (%) 40 Recoil Reduction 2 Item Schematics ----------------- Huge Storage Unit | -10/Materials | Hacked Robot Schematics ------------------ None Fabricated ------------ Nothing Repaired ---------- Nothing Studied --------- None Alien Tech Used ----------------- None Achievements -------------- None Challenges ------------ None Game ------ Seed PotentialQuantumBox Manual? 0 Play Time 00:07:13 Cumulative 386.3 hours Start 2026.09.12 @ 01:03:33 End 2026.09.12 @ 01:09:59 Sessions 1 Manual Loads 0 Difficulty Rogue Special Mode None Game No. 349 Rogue 295 Adventurer 54 Explorer 0 Win Type - Total 22 Types 14/1/1/1/1/0/1/1/1/1 Lore% 83 Gallery% 70 Achievement% 69 Wizard Run 0 Options --------- Layout 1 ASCII 0 Keyboard 0 Movement Mouse Keybinds 1 Fullscreen 2 Font 32/Tamsyn Map View 50x35 Zoom Use 0% Tactical HUD 1 Map Filters NONE Filters NONE Steam 1 RUN: 0ee456a6-730b-4f1e-b347-a32a91168e3d